Cogmind - Beta 14 @@@ ROGUE MODE // 2024.08.26 @ 12:10:37 Player: DZKane Result: Self-destructed Performance ------------- Evolutions (5) 2500 Regions Visited (10) 2000 Robots Destroyed (186) 930 Value Destroyed (6257) 6257 Prototype IDs (20) 400 Alien Tech Used (0) 0 Bonus (1272) 1272 TOTAL SCORE: 13359 Bonus ------- High Alert Combat Kills 753 Follower Combat Kills 645 Registered with UFD 300 Friendly Fire -426 Cogmind --------- Core Integrity 125/1000 Matter 229/300 Energy 67/100 System Corruption 12% Temperature Cool (0) Movement Treading (180) Ox2 Location -5/Factory Parts ------- > --- POWER (2) -------- (None) > --- PROPULSION (6) --- Overtuned Treads Overtuned Treads Carbon-fiber Leg Overtuned Scrapsphere > --- UTILITY (5) ------ Scrap Suit Advanced Heat Sink Huge Storage Unit Enhanced Optical Array > --- WEAPON (4) ------- Heavy Laser Heavy Assault Rifle > --- INVENTORY (25) --- Scrap Suit Improved Sensor Array Improved Signal Interpreter Improved Target Analyzer Particle Charger A0-MCA's Component Scanner Thief Drone Bay (3/3) Precision Rocket Launcher Botcube Peak State ------------ > --- POWER ------------ Light Fission Core Neutrino Core > --- PROPULSION ------- Improved Treads Armored Treads Medium Treads Armored Medium Treads Compact Wheel Compact Wheel > --- UTILITY ---------- Improved Cryofiber Web Advanced Heat Sink Huge Storage Unit Enhanced Optical Array Improved Medium Armor Plating > --- WEAPON ----------- Advanced Beam Rifle Advanced Beam Rifle Wave Gun Power Sword > --- INVENTORY -------- Overtuned Treads Overtuned Treads Carbon-fiber Leg Overtuned Scrapsphere Scrap Suit Scrap Suit Improved Heat Sink Advanced Heat Sink Improved Sensor Array Improved Signal Interpreter Improved Target Analyzer Particle Charger Improved Heavy Armor Plating Reactive Plating Reflective Plating Hardlight Generator A0-MCA's Component Scanner Thief Drone Bay Advanced Beam Rifle Heavy Laser Precision Rocket Launcher Botcube [Rating: 77] Favorites ----------- Power Heavy Ion Engine Engine Heavy Ion Engine Power Core Light Fission Core Propulsion Armored Treads Treads Armored Treads Leg Carbon-fiber Leg Wheel Armored Wheel Hover Unit Aerolev Unit Utility Huge Storage Unit Device Improved Cryofiber Web Storage Huge Storage Unit Processor Enhanced Optical Array Hackware Authchip [Armor] Protection Hardened Light Armor Plating Weapon Advanced Beam Rifle Energy Gun Advanced Beam Rifle Ballistic Gun Heavy Assault Rifle Launcher Precision Rocket Launcher Special Weapon CPS Tube Slashing Weapon Power Sword Special Melee Weapon Datajack Build | -11 -10 -10 -9 -9 -8 -8 -8 -8 -6 -5 ------- Run | Yrd Mat Min Mat Min Mat Sto Rec Scr Fac Fac Slots Evolved 10 | . . . 2 . 2 . . . 4 2 Power 1 | . . . . . . . . . 1 . Propulsion 4 | . . . . . 1 . . . 2 1 Utility 3 | . . . . . 1 . . . 1 1 Weapon 2 | . . . 2 . . . . . . . Parts Attached 178 | 7 11 6 26 4 11 39 . 12 24 38 Power 23 | 1 2 2 3 . 1 4 . . 5 5 Engine 17 | 1 2 2 3 . 1 3 . . 4 1 Core 6 | . . . . . . 1 . . 1 4 Reactor . | . . . . . . . . . . . Propulsion 51 | 2 4 2 8 1 2 8 . 5 7 12 Treads 35 | . 4 2 7 1 1 2 . 3 7 8 Leg 1 | . . . . . . . . . . 1 Wheel 14 | 2 . . 1 . 1 5 . 2 . 3 Hover 1 | . . . . . . 1 . . . . Flight . | . . . . . . . . . . . Utility 44 | 2 3 1 5 1 2 7 . 2 8 13 Device 16 | 1 . . 1 . 1 2 . . 3 8 Storage 6 | 1 2 . 1 . 1 . . . 1 . Processor 1 | . . . . . . . . . . 1 Hackware 4 | . . . . . . 1 . 2 1 . Protection 17 | . 1 1 3 1 . 4 . . 3 4 Artifact . | . . . . . . . . . . . Weapon 60 | 2 2 1 10 2 6 20 . 5 4 8 Energy Gun 17 | . . . 2 . . 4 . 2 3 6 Energy Cannon . | . . . . . . . . . . . Ballistic Gun 36 | 2 2 1 8 1 5 14 . 2 . 1 Ballistic Cannon . | . . . . . . . . . . . Launcher 3 | . . . . . . 2 . . . 1 Special Weapon 1 | . . . . . . . . 1 . . Impact Weapon . | . . . . . . . . . . . Slashing Weapon 2 | . . . . . 1 . . . 1 . Piercing Weapon . | . . . . . . . . . . . Special Melee Weapon 1 | . . . . 1 . . . . . . Unidentified Prototypes 10 | . . . 3 . 1 5 . . . 1 Corrupted Parts 2 | . . . . . . . . 2 . . System Corruption 6 | . . . . . . . . 6 . . Parts Lost 49 | . 1 5 3 . . 5 . . 3 32 Power 8 | . . 2 . . . 1 . . 1 4 Propulsion 14 | . . 1 . . . 2 . . . 11 Utility 14 | . 1 1 . . . 1 . . 1 10 Weapon 13 | . . 1 3 . . 1 . . 1 7 Highest Loss Streak 17 | . 1 5 2 . . 1 . . 3 17 To Critical Strikes 1 | . . . . . . . . . . 1 Average Slot Usage (%) 96 | . 96 96 98 95 95 96 100 99 99 78 Engine 9 | . 14 11 11 11 9 7 9 9 11 2 Treads 18 | . 21 27 13 10 9 9 9 20 32 19 Wheel 8 | . 5 . 8 11 18 17 18 6 . 2 Device 3 | . 1 . . . 8 5 9 . 6 9 Storage 8 | . 14 14 11 11 9 9 9 9 6 5 Hackware 6 | . . . . . . 3 . 18 6 . Protection 6 | . 9 13 11 11 9 9 9 . 5 4 Energy Gun 12 | . . . 3 11 1 4 18 20 21 13 Ballistic Gun 18 | . 28 27 38 29 26 25 18 14 . . Slashing Weapon 1 | . . . . . 4 2 . . 3 4 Peak Build Rating 77 | 7 9 10 23 27 43 44 39 47 66 77 Average Rating 40 | 4 7 9 17 23 36 39 38 43 62 62 On Entrance 28 | . 7 9 10 23 27 43 38 39 46 66 Naked Turns . | . . . . . . . . . . . Heaviest Build 123 | 14 30 31 65 65 108 108 104 98 123 123 Greatest Support 116 | 32 40 40 40 12 24 24 22 76 116 116 Greatest Overweight (x) 34 | 2 . 1 5 5 4 8 4 9 1 34 Average Overweight (x) 2 | . . . 2 5 3 4 4 2 . 1 Largest Inventory Capacity 25 | 8 15 15 20 20 25 25 25 25 25 25 Average Capacity 22 | 7 10 15 16 20 24 25 25 25 25 25 Most Carried 25 | 7 15 15 18 20 25 25 25 25 25 25 Average Carried 21 | 4 9 11 14 18 24 24 24 24 24 22 Final Capacity 25 | 8 15 15 20 20 25 25 25 25 25 25 Final Carried 25 | 5 15 12 18 20 25 23 25 25 25 10 Class Distribution -------------------- 30% | Gunner 25% | Tank 19% | Mutant 19% | Scavenger-Tank 3% | Scavenger-Gunner Dominant Class ---------------- Mutant | -10/Materials Mutant | -10/Mines Scavenger-Tank | -9/Materials Tank | -9/Mines Mutant | -8/Materials Scavenger-Tank | -8/Storage Tank | -8/Recycling Gunner | -8/Scraptown Tank | -6/Factory Tank | -5/Factory Resources | -11 -10 -10 -9 -9 -8 -8 -8 -8 -6 -5 ----------- Run | Yrd Mat Min Mat Min Mat Sto Rec Scr Fac Fac Matter Collected 4086 | 193 291 184 587 58 486 1555 21 93 263 355 Remotely . | . . . . . . . . . . . Salvage Created 9023 | 100 302 204 1056 98 770 2759 178 . 2063 1493 Parts 396 | 3 25 11 65 4 44 137 7 . 54 46 Haulers Intercepted 12 | . . . 3 . 2 5 . . 2 . Recyclers Shooed 8 | . . . 2 . 1 1 . . 4 . Parts Field Recycled . | . . . . . . . . . . . Retrieved Matter . | . . . . . . . . . . . Parts Self-Destructed . | . . . . . . . . . . . Prevented . | . . . . . . . . . . . Kills | -11 -10 -10 -9 -9 -8 -8 -8 -8 -6 -5 ------- Run | Yrd Mat Min Mat Min Mat Sto Rec Scr Fac Fac Combat Hostiles Destroyed 138 | . 11 9 19 2 10 37 2 . 28 20 Melee 8 | . . . . . 2 3 . . 1 2 Guns 118 | . 11 9 18 2 8 34 2 . 22 12 AOE 5 | . . . 1 . . . . . . 4 Classes Destroyed 18 | 2 3 1 4 . 1 1 . . 1 5 Worker 11 | . . . 1 . 4 2 . . . 4 Builder 1 | . . . . . . . . . . 1 Tunneler 2 | 1 . 1 . . . . . . . . Hauler 12 | . . . 3 . 2 5 . . 2 . Recycler 15 | 1 1 . 1 . 2 5 1 . 2 2 Mechanic 1 | . . . . . . . . . . 1 Operator 4 | . . . 1 . 1 1 . . 1 . Watcher 6 | . 1 . 3 . 1 1 . . . . Swarmer 21 | . 9 3 4 . 3 . . . 2 . Grunt 60 | . 2 2 9 2 3 21 . . 10 11 Brawler 5 | . . . . . 1 1 . . 2 1 Duelist 1 | . . . . . . . . . . 1 Protector 1 | . . . . . . . . . . 1 Sentry 37 | . . . 6 . 3 14 2 . 8 4 Hunter 6 | . . . . . . 1 . . 4 1 Programmer 2 | . . . . . . . . . 2 . Heavy 1 | . . . . . . . . . . 1 Assembled 4 | . . 4 . . . . . . . . Best Kill Streak 11 | 2 6 6 4 2 4 6 3 . 9 11 Combat Bots Only 9 | . 6 6 4 2 3 4 2 . 9 8 Max Kills in Single Turn 3 | 1 1 1 2 1 2 2 1 . 1 3 Gunslinging 1 | . . . . . 1 . . . . . Exploded 2 | . . . 1 . . . . . . 2 Melee 1 | . . . . . 1 1 . . 1 1 Uniques/NPCs Destroyed . | . . . . . . . . . . . Combat | -11 -10 -10 -9 -9 -8 -8 -8 -8 -6 -5 -------- Run | Yrd Mat Min Mat Min Mat Sto Rec Scr Fac Fac Hostile Shots Fired 1057 | . 68 85 94 5 31 149 2 . 301 322 Missed 320 | . 24 16 22 3 8 36 . . 127 84 Damage Taken 11940 | . 409 1009 882 22 442 1909 46 . 2074 5147 Core 1648 | . 94 150 100 . 32 187 11 . 199 875 Absorbed by Shields 40 | . . . . . . . . . . 40 Ignored by Resistances 135 | . . . . . . . . . 49 86 Regen/Repaired (Parts) 261 | . . . . . . 229 . . 32 . Core Remaining (%) 62 | 100 . 2 . 75 . . . 58 76 . Volleys Fired 477 | 4 40 28 73 2 41 106 4 . 88 91 Largest 4 | 2 2 2 4 4 4 4 4 . 4 3 Hottest 203 | 40 40 40 124 124 124 170 170 . 202 203 Shots Fired 1277 | 8 80 56 239 8 118 320 16 . 256 176 Gun 1268 | 8 80 56 239 8 118 320 16 . 254 169 Cannon . | . . . . . . . . . . . Launcher 7 | . . . . . . . . . . 7 Special 2 | . . . . . . . . . 2 . Kinetic 819 | 8 80 56 230 6 112 308 8 . . 11 Thermal 449 | . . . 9 2 6 12 8 . 254 158 Explosive 7 | . . . . . . . . . . 7 Electromagnetic . | . . . . . . . . . . . Robot Hit Streak 18 | 3 7 12 13 4 9 17 12 . 17 18 Robot Miss Streak 6 | 1 5 3 5 1 4 6 2 . 4 4 Penetration Max 1 | . . . . . . 1 . . . 1 Secondary Targets 19 | . 3 1 . 1 4 2 . . 6 2 Max Gunslinging Chain 2 | . 1 1 . 1 2 1 . . 1 1 Shots Hit Robots 898 | 5 43 37 163 6 79 225 8 . 189 143 Core Hits 386 | 4 23 19 57 2 29 82 3 . 98 69 Critical Kills 3 | . . . 1 . 1 1 . . . . Critical Parts Destroyed 4 | . . . 2 . . 2 . . . . Critical Strikes 34 | . . . 3 . 1 8 1 . 10 11 Burn 23 | . . . . . . 1 1 . 10 11 Destroy 7 | . . . 3 . 1 3 . . . . Sever 4 | . . . . . . 4 . . . . Melee Attacks 48 | . . . . . 7 30 . . 1 10 Impact . | . . . . . . . . . . . Slashing 48 | . . . . . 7 30 . . 1 10 Piercing . | . . . . . . . . . . . Sneak Attacks 8 | . . . . . 4 4 . . . . Combat Hostiles . | . . . . . . . . . . . Follow-up Attacks . | . . . . . . . . . . . Damage Inflicted 17968 | 41 441 367 1868 107 1804 4916 166 . 4079 4179 Guns 14526 | 41 441 363 1693 107 1262 3663 162 . 4030 2764 Cannons . | . . . . . . . . . . . Explosions 1384 | . . . 175 . . . . . . 1209 Melee 2025 | . . . . . 542 1229 . . 48 206 Ramming 33 | . . 4 . . . 24 4 . 1 . Kinetic 7372 | 41 441 363 1512 89 1203 3503 16 . . 204 Thermal 7329 | . . . 356 18 59 160 146 . 4030 2560 Explosive 1209 | . . . . . . . . . . 1209 Electromagnetic . | . . . . . . . . . . . Impact . | . . . . . . . . . . . Slashing 2025 | . . . . . 542 1229 . . 48 206 Piercing . | . . . . . . . . . . . Highest Corruption 12 | . 4 9 . . . . . 6 2 12 Average Corruption 4 | . 3 8 . . . . . 4 1 6 Corruption Purged . | . . . . . . . . . . . Corruption Blocked . | . . . . . . . . . . . Effects 34 | . 4 15 . . . . . . 6 9 Message Errors 5 | . . 4 . . . . . . . 1 Matter Fused 5 | . 2 1 . . . . . . 1 1 Heat Flow Errors 5 | . . 3 . . . . . . 1 1 Energy Discharges 4 | . . 2 . . . . . . 1 1 Parts Rejected 3 | . . . . . . . . . 1 2 Data Loss (minor) 3 | . . 2 . . . . . . . 1 Data Loss (major) 2 | . 1 1 . . . . . . . . Misfires 3 | . . 1 . . . . . . 1 1 Alerts 1 | . 1 . . . . . . . . . Weapon Failures 3 | . . 1 . . . . . . 1 1 Overload Shots . | . . . . . . . . . . . Overflow Damage 330 | . . . 61 . 123 144 . . . 2 Projectiles . | . . . . . . . . . . . Explosions 63 | . . . 61 . . . . . . 2 Melee 267 | . . . . . 123 144 . . . . Knockbacks . | . . . . . . . . . . . Impact . | . . . . . . . . . . . Kinetic . | . . . . . . . . . . . Secondary . | . . . . . . . . . . . Self-Inflicted Damage 81 | . . . . . . 79 2 . . . Shots 1 | . . . . . . 1 . . . . Rammed 4 | . . 1 . . . 1 1 . 1 . Targets Rammed 4 | . . 1 . . . 1 1 . 1 . Kicked . | . . . . . . . . . . . Crushed . | . . . . . . . . . . . Highest Temperature 530 | . 36 155 247 139 207 347 188 . 408 530 Average Temperature 91 | . 11 36 92 72 44 91 81 . 126 158 Received Heat Transfer 3440 | . 81 15 342 12 153 927 9 . 606 1295 Effects 14 | . . . . . . 3 . . 3 8 Shutdowns 4 | . . . . . . . . . 2 2 Energy Bleed 2 | . . . . . . 1 . . . 1 Interference 6 | . . . . . . 2 . . 1 3 Matter Decay 1 | . . . . . . . . . . 1 Short Circuit 1 | . . . . . . . . . . 1 Siege Activations . | . . . . . . . . . . . Robots Corrupted . | . . . . . . . . . . . Combat Hostiles . | . . . . . . . . . . . Parts Fried . | . . . . . . . . . . . Impact Corruptions 1 | . . . . . . 1 . . . . Robots Melted 7 | . . . . . . . . . 5 2 Combat Hostiles 7 | . . . . . . . . . 5 2 Parts Melted 62 | . . . . . . 2 . . 36 24 Heat Transferred 15338 | . . . 433 37 111 370 333 . 8615 5439 Parts Sabotaged . | . . . . . . . . . . . Parts Stolen . | . . . . . . . . . . . Parts Stripped . | . . . . . . . . . . . Power Chain Reactions . | . . . . . . . . . . . Alert | -11 -10 -10 -9 -9 -8 -8 -8 -8 -6 -5 ------- Run | Yrd Mat Min Mat Min Mat Sto Rec Scr Fac Fac Peak Influence 932 | 10 189 105 345 111 191 680 380 . 932 677 Initial 433 | . 6 . . 61 42 16 261 . . 433 Average 259 | 3 66 66 160 66 102 384 297 . 317 479 Maximum Alert Level 3 | . . . 1 . . 2 1 . 3 2 Low Security (%) 52 | 100 100 100 59 100 100 24 . . 51 . Level 1 23 | . . . 40 . . 33 99 . 14 14 Level 2 21 | . . . . . . 41 . . 22 85 Level 3 2 | . . . . . . . . . 10 . Level 4 . | . . . . . . . . . . . Level 5 . | . . . . . . . . . . . High Security . | . . . . . . . . . . . Max Security . | . . . . . . . . . . . Squads Dispatched 44 | . . . 5 1 1 6 . . 22 9 Investigation 11 | . . . 3 1 . 2 . . 5 . Extermination 4 | . . . . . . . . . 3 1 Reinforcement 11 | . . . 2 . 1 1 . . 4 3 Assault 3 | . . . . . . . . . 2 1 Garrison 15 | . . . . . . 3 . . 8 4 Intercept . | . . . . . . . . . . . Searches Triggered . | . . . . . . . . . . . Construction Impeded 1 | . . . . . . . . . . 1 Haulers Reinforced 2 | . . . . . . . . . 1 1 Active Scanning Responses . | . . . . . . . . . . . Cargo Convoy Interrupts . | . . . . . . . . . . . Stealth | -11 -10 -10 -9 -9 -8 -8 -8 -8 -6 -5 --------- Run | Yrd Mat Min Mat Min Mat Sto Rec Scr Fac Fac Distress Signals 12 | . 1 . 4 . 1 2 . . . 4 Communications Jammed . | . . . . . . . . . . . Distress Signals . | . . . . . . . . . . . Times Spotted 203 | . 15 12 26 3 16 44 2 . 45 40 Peak Tracking Total 8 | . 6 7 4 1 4 5 1 . 7 8 Tactical Retreats 6 | . . . . . . 2 . . 2 2 Traps | -11 -10 -10 -9 -9 -8 -8 -8 -8 -6 -5 ------- Run | Yrd Mat Min Mat Min Mat Sto Rec Scr Fac Fac Traps Triggered 8 | . 2 . 1 . 2 1 . . 2 . Indirectly . | . . . . . . . . . . . Trap Hack Attempts . | . . . . . . . . . . . Triggered . | . . . . . . . . . . . Disarmed . | . . . . . . . . . . . Reprogrammed . | . . . . . . . . . . . Reused . | . . . . . . . . . . . Traps Extracted . | . . . . . . . . . . . Installed . | . . . . . . . . . . . Triggered . | . . . . . . . . . . . Machines | -11 -10 -10 -9 -9 -8 -8 -8 -8 -6 -5 ---------- Run | Yrd Mat Min Mat Min Mat Sto Rec Scr Fac Fac Machines Disabled 14 | . . . 5 . . 6 . . 3 . Max in Single Turn 5 | . . . 5 . . 1 . . . . Garrison Access 2 | . . . . . . 1 . . 1 . Machines Repaired . | . . . . . . . . . . . Machines Dismantled . | . . . . . . . . . . . Machines Sabotaged . | . . . . . . . . . . . Overloaded Fab Kills . | . . . . . . . . . . . Hacking | -11 -10 -10 -9 -9 -8 -8 -8 -8 -6 -5 --------- Run | Yrd Mat Min Mat Min Mat Sto Rec Scr Fac Fac Machines Accessed 57 | . 5 1 5 1 6 13 11 2 11 2 Terminals 34 | . 5 . 3 . 6 10 6 . 3 1 Fabricators 3 | . . . . . . . . . 3 . Repair Stations 4 | . . . . . . 2 . . 1 1 Recycling Units 6 | . . . . . . . 5 . 1 . Scanalyzers 3 | . . . 2 . . . . . 1 . Garrison Access 3 | . . . . . . 1 . . 2 . Total Hacks 157 | . 16 1 16 1 20 41 26 4 29 3 Successful 91 | . 9 1 15 1 7 22 11 4 20 1 Failed 66 | . 7 . 1 . 13 19 15 . 9 2 Catastrophic 6 | . . . . . . 3 2 . 1 . Database Lockouts . | . . . . . . . . . . . Manual 71 | . 12 . 5 . 12 15 18 . 8 1 Terminals 109 | . 16 . 9 . 20 31 20 . 11 2 Fabricators 8 | . . . . . . . . . 8 . Repair Stations 10 | . . . . . . 7 . . 2 1 Recycling Units 7 | . . . . . . . 6 . 1 . Scanalyzers 11 | . . . 7 . . . . . 4 . Garrison Access 6 | . . . . . . 3 . . 3 . Terminal Hacks 40 | . 7 1 5 1 5 10 3 4 3 1 Record 4 | . . . . . . . . 3 . 1 Part Schematic 8 | . . . . . 3 3 2 . . . Robot Analysis 7 | . 3 . 1 . 1 . 1 . 1 . Prototype ID Bank 2 | . 1 . . . . 1 . . . . Open Door 6 | . . 1 . 1 . 4 . . . . Branch Access Points 1 | . . . . . 1 . . . . . Terminal Index 1 | . . . 1 . . . . . . . Fabricator Index 1 | . . . . . . . . . 1 . Alert Level 1 | . . . . . . . . . 1 . Unreport Threat 4 | . 1 . 1 . . 2 . . . . Locate Traps 1 | . . . 1 . . . . . . . Recall Investigation 1 | . . . 1 . . . . . . . Hauler Manifests 1 | . 1 . . . . . . . . . Zone Layout 1 | . 1 . . . . . . . . . Derelict Proto ID Bank 1 | . . . . . . . . 1 . . Fabricator Hacks 8 | . . . . . . . . . 8 . Network Status 2 | . . . . . . . . . 2 . Load Schematic 3 | . . . . . . . . . 3 . Build 3 | . . . . . . . . . 3 . Repair Station Hacks 9 | . . . . . . 7 . . 2 . Scan Component 5 | . . . . . . 4 . . 1 . Repair 4 | . . . . . . 3 . . 1 . Recycling Unit Hacks . | . . . . . . . . . . . Scanalyzer 8 | . . . 6 . . . . . 2 . Insert Component 3 | . . . 2 . . . . . 1 . Analyze 5 | . . . 4 . . . . . 1 . Garrison Access Hacks 2 | . . . . . . 1 . . 1 . Seal Access 2 | . . . . . . 1 . . 1 . Unauthorized Hacks 24 | . 2 . 4 . 2 4 8 . 4 . Terminals 16 | . 2 . 3 . 2 4 3 . 2 . Botnet 13 | . 2 . 2 . 2 2 3 . 2 . Skim 3 | . . . 1 . . 2 . . . . Fabricators . | . . . . . . . . . . . Repair Stations 1 | . . . . . . . . . 1 . Recycling Units 5 | . . . . . . . 5 . . . Tunnel 5 | . . . . . . . 5 . . . Fedlink 1 | . . . . . . . . . 1 . Scanalyzers 2 | . . . 1 . . . . . 1 . Extract 2 | . . . 1 . . . . . 1 . Garrison Access . | . . . . . . . . . . . Data Cores Recovered . | . . . . . . . . . . . Used . | . . . . . . . . . . . Hacking Detections 41 | . 5 . 4 . 6 10 7 . 7 2 Full Trace Events 7 | . . . 1 . . 2 2 . 2 . Feedback Events 2 | . . . . . . 1 . . 1 . Corruption 1 | . . . . . . . . . 1 . Hackware Fried 1 | . . . . . . 1 . . . . Feedback Blocked . | . . . . . . . . . . . Robot Schematics Acquired . | . . . . . . . . . . . Robots Built . | . . . . . . . . . . . Authchips . | . . . . . . . . . . . Time . | . . . . . . . . . . . Total Robot Build Rating . | . . . . . . . . . . . Part Schematics Acquired 16 | . . . 3 . 3 3 2 . 5 . Parts Built 5 | . . . . . . . . . 5 . Authchips 2 | . . . . . . . . . 2 . Time 160 | . . . . . . . . . 160 . Total Part Build Rating 13 | . . . . . . . . . 13 . Parts Repaired 4 | . . . . . . 3 . . 1 . Time 146 | . . . . . . 96 . . 50 . Parts Recycled . | . . . . . . . . . . . Recycled Matter . | . . . . . . . . . . . Retrieved Matter . | . . . . . . . . . . . Retrieved Components . | . . . . . . . . . . . Parts Scanalyzed 3 | . . . 2 . . . . . 1 . Part Schematics Acquired 2 | . . . 1 . . . . . 1 . Parts Damaged . | . . . . . . . . . . . Bothacking | -11 -10 -10 -9 -9 -8 -8 -8 -8 -6 -5 ------------ Run | Yrd Mat Min Mat Min Mat Sto Rec Scr Fac Fac Used RIF Installer . | . . . . . . . . . . . Robots Hacked . | . . . . . . . . . . . Non-combat . | . . . . . . . . . . . Combat . | . . . . . . . . . . . Robot Hacks Applied . | . . . . . . . . . . . Relay Couplers Released 6 | . . . . . . . . . 6 . Machine Destruction 3 | . . . . . . . . . 3 . Programmers 3 | . . . . . . . . . 3 . Fabnet Peak Effective % . | . . . . . . . . . . . Robots Rewired . | . . . . . . . . . . . Allies Hacked . | . . . . . . . . . . . Hacks Repelled . | . . . . . . . . . . . Allies | -11 -10 -10 -9 -9 -8 -8 -8 -8 -6 -5 -------- Run | Yrd Mat Min Mat Min Mat Sto Rec Scr Fac Fac Total Allies 3 | . . . . . . . . 1 2 . Largest Group 1 | . . . . . . . . 1 1 . Highest-Rated Group 67 | . . . . . . . . 63 67 . Highest-Rated Ally 67 | . . . . . . . . 63 67 . Total Orders 2 | . . . . . . . . 2 . . STAY 1 | . . . . . . . . 1 . . FOLLOW 1 | . . . . . . . . 1 . . Ally Attacks 87 | . . . . . . . . . 87 . Total Damage 2706 | . . . . . . . . . 2706 . Kills 16 | . . . . . . . . . 16 . Allies Corrupted . | . . . . . . . . . . . Allies Melted 1 | . . . . . . . . . 1 . Intel | -11 -10 -10 -9 -9 -8 -8 -8 -8 -6 -5 ------- Run | Yrd Mat Min Mat Min Mat Sto Rec Scr Fac Fac Robot Analysis Total 7 | . 3 . 1 . 1 . 1 . 1 . Derelict Logs Recovered 2 | . . 2 . . . . . . . . Drone Launches . | . . . . . . . . . . . Drone Recoveries . | . . . . . . . . . . . Exploration | -11 -10 -10 -9 -9 -8 -8 -8 -8 -6 -5 ------------- Run | Yrd Mat Min Mat Min Mat Sto Rec Scr Fac Fac Turns Passed 14198 | 75 717 568 1307 327 1291 2336 658 3559 2462 898 Spaces Moved 6749 | 43 387 294 618 186 726 1111 435 1790 891 268 Core 26 | 25 . . . . . . . . . 1 Treads 2701 | . 293 294 140 . . . . 876 891 207 Legs . | . . . . . . . . . . . Wheels 4022 | 18 94 . 478 186 726 1111 435 914 . 60 Hover . | . . . . . . . . . . . Flight . | . . . . . . . . . . . Fastest Speed 50 | 50 100 160 120 165 120 145 145 145 166 145 Average Speed 171 | 110 145 160 149 165 148 147 145 194 210 199 Slowest Speed 1750 | 150 160 240 240 165 150 210 145 246 247 1750 Overloaded Moves . | . . . . . . . . . . . Propulsion Burnouts . | . . . . . . . . . . . Robots Hopped . | . . . . . . . . . . . Cave-ins Triggered . | . . . . . . . . . . . Exploration Rate (%) 49 | 3 64 40 60 36 49 96 94 76 17 8 Regions Visited 10 Branch Regions 5 Pre-discovered Areas 5 | . . . . . . . 5 . . . Known Exits Taken 2 | . . . 1 . 1 . . . . . Unknown Exits Taken 8 | 1 1 1 . 1 . 1 1 1 1 . Scrap Searched 8 | . . 2 . 2 . . . 4 . . Spaces Dug 3 | . . . . . . 3 . . . . Terrain Destroyed 89 | . . . 19 . . 27 . . 1 42 Melee 3 | . . . . . . 3 . . . . Projectile 4 | . . . . . . 3 . . 1 . AOE 82 | . . . 19 . . 21 . . . 42 Terrain Rammed . | . . . . . . . . . . . Walls Destroyed . | . . . . . . . . . . . Machines Disabled . | . . . . . . . . . . . Actions | -11 -10 -10 -9 -9 -8 -8 -8 -8 -6 -5 --------- Run | Yrd Mat Min Mat Min Mat Sto Rec Scr Fac Fac Total 8477 | 61 475 341 878 202 868 1588 454 1880 1273 457 Wait 730 | . 13 12 125 3 47 248 11 16 215 40 Move 6739 | 42 386 293 617 185 725 1110 434 1789 890 268 Hop . | . . . . . . . . . . . Pick Up 134 | 8 13 1 16 3 18 14 3 30 27 1 Fast Attach 70 | 4 4 2 6 2 3 20 . 2 9 18 Attach 50 | 3 . 4 3 1 2 4 . 9 9 15 Detach 5 | . . . . . . 3 . 1 . 1 Swap 58 | . 7 . 17 1 6 15 . 1 6 5 Drop 161 | . 12 . 21 5 19 37 1 31 27 8 Fire 477 | 4 40 28 73 2 41 106 4 . 88 91 Melee 48 | . . . . . 7 30 . . 1 10 Ram 2 | . . . . . . 1 1 . . . Kick . | . . . . . . . . . . . Crush 2 | . . 1 . . . . . . 1 . Escape Stasis . | . . . . . . . . . . . Rewire 1 | . . . . . . . . 1 . . Trap . | . . . . . . . . . . . Miscellaneous . | . . . . . . . . . . . Route ------- -11/Scrapyard -10/Materials (discovered 4 exits: *Mat x2 / *Min x2) -10/Mines (discovered 3 exits: *Mat x2 / [*Exi]) -9/Materials (discovered 3 exits: *Mat / *Min x2) -9/Mines -8/Materials (discovered 3 exits: [*Fac x2] / *Sto) -8/Storage (discovered 2 exits: [*Fac] / *Rec) -8/Recycling (discovered 2 exits: *Fac / *Scr) -8/Scraptown -6/Factory -5/Factory History --------- Turn | Location | Event 25 | -11/Scrapyard | Discovered new exit (range 15) 76 | -11/Scrapyard | Entered Materials 166 | -10/Materials | Discovered new exit (range 8) 316 | -10/Materials | Discovered new exit (range 4) 332 | -10/Materials | Build established: Mutant 697 | -10/Materials | Discovered new exit (range 4) 745 | -10/Materials | Discovered new exit (range 15) 793 | -10/Materials | Entered Mines 794 | -10/Mines | Assembled infested the area 798 | -10/Mines | Met a Derelict bent on vengeance 832 | -10/Mines | Core integrity fell below 50% 842 | -10/Mines | Core integrity fell below 20% 871 | -10/Mines | Lost 5 parts (2p1n1u1w) 918 | -10/Mines | Discovered new exit (range 9) 1103 | -10/Mines | Discovered new exit (range 6) 1171 | -10/Mines | Deemed a non-threat by the Exiles lab entrance 1172 | -10/Mines | Discovered new exit (range 5) 1212 | -10/Mines | Found the Drone Emporium 1215 | -10/Mines | Learned location of 1 exit from Materials 1220 | -10/Mines | Found Prototype Device 1264 | -10/Mines | Learned Materials emergency access door positions 1361 | -10/Mines | Entered Materials 1361 | -9/Materials | Evolved 2 slots: Weapon x2 1362 | -9/Materials | Identified exit to Mines 1367 | -9/Materials | Identified Thief Drone Bay 1662 | -9/Materials | Build established: Scavenger-Tank 1975 | -9/Materials | Discovered exit to Mines (range 6) 2533 | -9/Materials | Discovered new exit (range 10) 2668 | -9/Materials | Entered Mines 2826 | -9/Mines | Discovered new exit (range 9) 2953 | -9/Mines | Met a Derelict shopkeep closing up shop 2995 | -9/Mines | Entered Materials 2995 | -8/Materials | Evolved 2 slots: Propulsion x1, Utility x1 3039 | -8/Materials | Discovered new exit (range 16) 3085 | -8/Materials | Identified exit to Storage 3433 | -8/Materials | Discovered new exit (range 10) 3470 | -8/Materials | Build established: Scavenger-Gunner 3882 | -8/Materials | Discovered new exit (range 6) 3983 | -8/Materials | Build established: Mutant 4286 | -8/Materials | Entered Storage 4869 | -8/Storage | Repaired Arm. Wheel 4903 | -8/Storage | Repaired Arm. Wheel 5237 | -8/Storage | Hacking Suite fried by hacking feedback 5543 | -8/Storage | Build established: Gunner 5579 | -8/Storage | Garrison activated, responded to threat 5774 | -8/Storage | Discovered new exit (range 15) 5930 | -8/Storage | Build established: Scavenger-Tank 6068 | -8/Storage | Repaired Arm. Wheel 6617 | -8/Storage | Used back door to open Recycling access 6617 | -8/Storage | Discovered new exit (range 4) 6622 | -8/Storage | Entered Recycling 6688 | -8/Recycling | Scanned before Scraplab entrance 6776 | -8/Recycling | Build established: Tank 7061 | -8/Recycling | Discovered new exit (range 15) 7264 | -8/Recycling | Entered Scraplab 7276 | -8/Recycling | Discovered new exit (range 3) 7280 | -8/Recycling | Entered Scraptown 7284 | -8/Scraptown | System corruption cleaned by C-Scrubber 7588 | -8/Scraptown | Build established: Gunner 7603 | -8/Scraptown | Visited UFD Registry 7603 | -8/Scraptown | Registered with UFD as "Roughslicer" 7641 | -8/Scraptown | Visited Shadow of the Wyrm 7777 | -8/Scraptown | Visited Cyclists 7790 | -8/Scraptown | Entered Cyclist Reading Room 7859 | -8/Scraptown | Visited Scrap Suit Storage 7890 | -8/Scraptown | Visited Abandonware Association 7901 | -8/Scraptown | Learned abandonware demo "OVRCLOCK.EXE" 7948 | -8/Scraptown | Visited Scrapoid Research Area 8135 | -8/Scraptown | Visited Junk Repository 8226 | -8/Scraptown | Visited Scrapoid Pod Storage 8247 | -8/Scraptown | Visited Junk Repository 8267 | -8/Scraptown | Visited Science Guys 8315 | -8/Scraptown | Visited A0-MCA Data Center 8324 | -8/Scraptown | Given a B+ rating by A0-MCA 8353 | -8/Scraptown | Visited DA-N13 Charitable Foundation 8376 | -8/Scraptown | Visited Botcube Research 8723 | -8/Scraptown | Found Botcube 8999 | -8/Scraptown | Found Scrap Suit 9218 | -8/Scraptown | Found A0-MCA's Component Scanner 9278 | -8/Scraptown | Found DCF Scrap (28 items) 9699 | -8/Scraptown | Botcube activated 9719 | -8/Scraptown | Botcube completed mutation into wheeled form, armed with 2 cannons. 10194 | -8/Scraptown | Found Scrap Suit 10614 | -8/Scraptown | Found Scrap Suit 10650 | -8/Scraptown | Discovered new exit (range 3) 10839 | -8/Scraptown | Entered Factory 10839 | -6/Factory | Accompanied by 1 ally 10839 | -6/Factory | Evolved 4 slots: Power x1, Propulsion x2, Utility x1 11020 | -6/Factory | Fabricated Reactive Plating (x2) 11334 | -6/Factory | Build established: Tank 11355 | -6/Factory | Repaired Angular Momentum Engine 12279 | -6/Factory | Fabricated Reactive Plating (x2) 12529 | -6/Factory | Fabricated Huge Storage Unit? 12552 | -6/Factory | Botcube activated 12564 | -6/Factory | Botcube completed mutation into legged form, armed with 1 gun. 12717 | -6/Factory | Garrison activated, responded to threat 12742 | -6/Factory | Found Botcube 12773 | -6/Factory | Discovered new exit (range 13) 12893 | -6/Factory | Build established: Scavenger-Tank 12939 | -6/Factory | First assault squad dispatched 12994 | -6/Factory | Botcube activated 13018 | -6/Factory | Botcube completed mutation into treaded form, armed with 2 guns. 13108 | -6/Factory | Garrison activated, responded to threat 13181 | -6/Factory | Lost 3 parts (1p1u1w) 13190 | -6/Factory | Destroyed 9 combat bots 13198 | -6/Factory | Found Botcube 13301 | -6/Factory | Entered another Factory area 13301 | -5/Factory | Evolved 2 slots: Propulsion x1, Utility x1 13424 | -5/Factory | Build established: Tank 13787 | -5/Factory | Lost 3 parts (1p1n1w) 13821 | -5/Factory | Garrison activated, responded to threat 13901 | -5/Factory | First assault squad dispatched 14014 | -5/Factory | Core integrity fell below 50% 14016 | -5/Factory | Destroyed 8 combat bots 14071 | -5/Factory | Lost 17 parts (2p4n8u3w) 14167 | -5/Factory | Garrison activated, responded to threat 14186 | -5/Factory | System corruption reached 10% 14187 | -5/Factory | Core integrity fell below 20% 14199 | -5/Factory | Self-destructed Last Messages --------------- 14186_ System corrupted: Gauss Rifle jammed. 14186_ R-10 Processor collects Carbon-fiber Leg. 14186_ Gauss Rifle destroyed. 14186_ Penetrated by Slug. 14188_ Adv. Heat Sink destroyed. 14188_ P-70 Sage resets K-01 Serf, system corruption cleaned. 14188_ Penetrated by Slug. 14189_ K-01 Serf collects debris. 14189_ Penetrated by Slug. 14190_ Rnf. Fission Core destroyed. 14191_ Penetrated by Slug. 14192_ K-01 Serf collects debris. 14192_ P-70 Sage resets R-10 Processor, system corruption cleaned. 14194_ Scrap Suit secures Hvy. Assault Rifle. 14195_ Penetrated by Slug. 14196_ Scrap Suit secures Hvy. Laser. 14196_ K-01 Serf collects debris. [Achievement: I Think I Know What's Going On] Map ----- +----------------------------------------------------+ | ???????? ??????????????????????????????????????? | | #########+#############+###??????????????????????? | | ^ ^ #??????????????????????? | | ? ^ ^ ^ #??????????????????????? | | ?? ^ """" """" """" #??????????????????????? | | ???? """" """" """" +??????????????????????? | | ????? """" """" """" #??????????????????????? | | ??????# """" """" """" #??????????????????????? | | ??????# """" """" """" #??????????????????????? | | ??????# ^ """" """" """" #??????????????????????? | | ??????# """" """" """" #??????????????????????? | | ??????# %! #??????????????????????? | | ??????# * % #??????????????????????? | | ??????# %! %% R #?#######??????????????? | | ###???# !######### # """"""?#????????????? | | #T #### % ! # # w # """""" #????????????? | | % !! # """ # # """""" #??????????"?? | | % + """ # =%u # """""" #???????? ? | | % # """ # !p + #??????? # | | # # % # #####? # | | # """ # * # ] ## ! ] # | | ###+######### """ # # # ??? | | ??# ## """ # ;####+#############/#### | | ??# """ ## # u![% | | ??# """ ## # % k=! w ! | | ### """ ## # !@ *%=*=% | | # ## # [*%= u p | | # [ ########## YY% / p % | | " " "" #????????####/#############+########### | | # "R"" #??????? ????? ##??? | | # """ !#??????# " "???? """ ###???? | | ##########??????# """ " ??? "Y #?????? | | #???????????????# G " #???""" #?????? | | #???????????????# """ " #??? """ #?????? | | #???????????????# " ![ " #???? """ #?????? | | #???????????????# ![ " #????? ""????????? | | #???????????????# [[ " #?????? ????????? | | #???????????????# " #??????###????????? | | ###???????????????# " #?????????????????? | | ??????????????????# #?????????????????? | | ??????????????????# #?????????????????? | | ??????????????????####### ######?????????????????? | | ?????????????????????????##??????????????????????? | | ?????????????????????????????????????????????????? | | ?????????????????????????????????????????????????? | | ?????????????????????????????????????????????????? | | ?????????????????????????????????????????????????? | | ?????????????????????????????????????????????????? | | ?????????????????????????????????????????????????? | | ?????????????????????????????????????????????????? | +----------------------------------------------------+ Best States ------------- Heat Dissipation 78 Coolant Potential 65 Energy Generation 32 Energy Capacity 480 Matter Stores 300 Matter Capacity 300 Sight Range 22 Terrain Scan Density 10 Base Temperature (-) 150 Armor Coverage 600 Resistance: KI 20 Resistance: TH 10 Evasion (%) 50 Recoil Reduction 5 Kinecelleration 30 Offensive Hacking 10 Authchip Count 2 Item Schematics ----------------- Arm. Wheel | -9/Materials | Scanalyzed Beam Rifle | -9/Materials | Extracted Huge Storage Unit | -9/Materials | Extracted Hcp. Storage Unit | -8/Materials | Hacked Arm. Treads | -8/Materials | Hacked Imp. Assault Rifle | -8/Materials | Hacked Gauss Rifle | -8/Storage | Hacked Hpw. Tractor Beam | -8/Storage | Hacked Reactive Plating | -8/Storage | Hacked Chainsword | -8/Recycling | Hacked Enh. Optical Array | -8/Recycling | Hacked Prc. Rocket Launcher | -6/Factory | Scanalyzed Kinecellerator | -6/Factory | Extracted Hvy. Plasma Cannon | -6/Factory | Extracted Imp. Trap Scanner | -6/Factory | Extracted Imp. Weapon Shielding | -6/Factory | Extracted Robot Schematics ------------------ None Fabricated ------------ Reactive Plating | x2 | -6/Factory | Authchip Reactive Plating | x2 | -6/Factory | Authchip Huge Storage Unit | x1 | -6/Factory Alien Tech Used ----------------- None Achievements -------------- I Think I Know What's Going On Challenges ------------ None Game ------ Seed MasterPersonalCanceller Manual? 0 Play Time 02:10:01 Cumulative 101.8 hours Start 2024.08.25 @ 16:09:36 End 2024.08.26 @ 12:10:37 Sessions 3 Manual Loads 0 Difficulty Rogue Special Mode None Game No. 73 Rogue 73 Adventurer 0 Explorer 0 Win Type - Total 2 Types 2/0/0/0/0/0/0/0/0 Lore% 50 Gallery% 55 Achievement% 48 Wizard Run 0 Options --------- Layout 1 ASCII 0 Keyboard 0 Movement Numpad Keybinds 0 Fullscreen 1 Font 24/Smallcaps Map View 50x35 Zoom Use 0% Tactical HUD 1 Map Filters NONE Filters NONE Steam 1 RUN: 45c68ae6-ce82-4737-a845-8539b7af1752